Cogmind - Beta 14 @@@ ROGUE MODE // 2024.12.10 @ 13:54:55 Player: celerysam Result: Destroyed by G-47 Trooper with Particle Gun Performance ------------- Evolutions (2) 1000 Regions Visited (3) 600 Robots Destroyed (21) 105 Value Destroyed (438) 438 Prototype IDs (0) 0 Alien Tech Used (0) 0 Bonus (0) 0 TOTAL SCORE: 2143 Bonus ------- None Cogmind --------- Core Integrity 0/550 Matter 52/300 Energy 99/100 System Corruption 0% Temperature Cool (9) Movement Core (100) Ox1 Location -8/Materials Parts ------- > --- POWER (1) -------- (None) > --- PROPULSION (4) --- (None) > --- UTILITY (4) ------ Small Storage Unit > --- WEAPON (2) ------- (None) > --- INVENTORY (8) ---- Light Ion Engine Advanced Treads Aluminum Leg VTOL Module Peak State ------------ > --- POWER ------------ Ion Engine > --- PROPULSION ------- Aluminum Leg Aluminum Leg Aluminum Leg Aluminum Leg > --- UTILITY ---------- Heat Sink Small Storage Unit Large Battery Improved Terrain Scanner > --- WEAPON ----------- EM Pulse Gun Assault Rifle > --- INVENTORY -------- Light Ion Engine Light Treads Light Treads VTOL Module Light Cannon [Rating: 13] Favorites ----------- Power Ion Engine Engine Ion Engine Propulsion Compact Wheel Treads Light Treads Leg Aluminum Leg Wheel Compact Wheel Utility Small Storage Unit Device Heat Sink Storage Small Storage Unit Protection Light Armor Plating Weapon EM Pulse Gun Energy Gun EM Pulse Gun Ballistic Gun Assault Rifle Ballistic Cannon Light Cannon Build | -11 -10 -9 -8 ------- Run | Yrd Mat Mat Mat Slots Evolved 4 | . . 2 2 Power . | . . . . Propulsion 2 | . . 1 1 Utility 2 | . . 1 1 Weapon . | . . . . Parts Attached 26 | 6 4 6 10 Power 3 | 1 1 1 . Engine 3 | 1 1 1 . Core . | . . . . Reactor . | . . . . Propulsion 10 | 2 . 2 6 Treads 4 | . . 2 2 Leg 4 | . . . 4 Wheel 2 | 2 . . . Hover . | . . . . Flight . | . . . . Utility 5 | 1 1 1 2 Device 2 | . . . 2 Storage 2 | 1 1 . . Processor . | . . . . Hackware . | . . . . Protection 1 | . . 1 . Artifact . | . . . . Weapon 8 | 2 2 2 2 Energy Gun 4 | 2 . 1 1 Energy Cannon . | . . . . Ballistic Gun 1 | . . 1 . Ballistic Cannon 3 | . 2 . 1 Launcher . | . . . . Special Weapon . | . . . . Impact Weapon . | . . . . Slashing Weapon . | . . . . Piercing Weapon . | . . . . Special Melee Weapon . | . . . . Unidentified Prototypes . | . . . . Parts Lost 20 | . . 6 14 Power 2 | . . 1 1 Propulsion 8 | . . 2 6 Utility 4 | . . 1 3 Weapon 6 | . . 2 4 Highest Loss Streak 14 | . . 3 14 To Critical Strikes . | . . . . Average Slot Usage (%) 83 | . 96 85 57 Engine 9 | . 14 6 4 Treads 7 | . . 17 5 Leg 2 | . . . 12 Wheel 15 | . 28 9 . Device 2 | . . . 9 Storage 21 | . 24 22 15 Protection 2 | . . 8 . Energy Gun 9 | . 15 5 5 Ballistic Gun 2 | . . 5 5 Ballistic Cannon 9 | . 12 11 . Peak Build Rating 13 | 6 7 9 13 Average Rating 7 | 4 6 7 7 On Entrance 5 | . 6 7 7 Naked Turns . | . . . . Heaviest Build 22 | 12 19 22 19 Greatest Support 40 | 26 26 40 40 Greatest Overweight (x) 1 | . . . 1 Average Overweight (x) . | . . . . Largest Inventory Capacity 8 | 8 8 8 8 Average Capacity 7 | 6 8 8 8 Most Carried 8 | 6 8 7 7 Average Carried 5 | 3 7 5 4 Final Capacity 8 | 8 8 8 8 Final Carried 8 | 6 8 4 4 Class Distribution -------------------- 100% | Mutant Dominant Class ---------------- Mutant | -10/Materials Mutant | -9/Materials Mutant | -8/Materials Resources | -11 -10 -9 -8 ----------- Run | Yrd Mat Mat Mat Matter Collected 433 | 214 87 118 14 Remotely . | . . . . Salvage Created 442 | . 184 162 96 Parts 36 | . 22 11 3 Haulers Intercepted 1 | . 1 . . Recyclers Shooed . | . . . . Parts Field Recycled . | . . . . Retrieved Matter . | . . . . Parts Self-Destructed . | . . . . Prevented . | . . . . Kills | -11 -10 -9 -8 ------- Run | Yrd Mat Mat Mat Combat Hostiles Destroyed 19 | . 9 8 2 Guns 6 | . 3 2 1 Cannons 12 | . 6 6 . AOE 1 | . . . 1 Classes Destroyed 4 | . 4 . . Hauler 1 | . 1 . . Watcher 1 | . 1 . . Swarmer 12 | . 8 4 . Grunt 7 | . 1 4 2 Best Kill Streak 5 | . 5 4 1 Combat Bots Only 5 | . 5 4 1 Max Kills in Single Turn 1 | . 1 1 1 Gunslinging . | . . . . Exploded 1 | . . . 1 Melee . | . . . . Uniques/NPCs Destroyed . | . . . . Combat | -11 -10 -9 -8 -------- Run | Yrd Mat Mat Mat Hostile Shots Fired 258 | . 38 91 129 Missed 65 | . 12 21 32 Damage Taken 2575 | . 206 688 1681 Core 717 | . 55 98 564 Absorbed by Shields . | . . . . Core Remaining (%) 84 | 100 78 75 . Volleys Fired 62 | . 19 31 12 Largest 2 | . 2 2 2 Hottest 80 | . 80 70 65 Shots Fired 113 | . 38 59 16 Gun 38 | . 10 18 10 Cannon 75 | . 28 41 6 Launcher . | . . . . Special . | . . . . Kinetic 89 | . 28 50 11 Thermal 1 | . . . 1 Explosive . | . . . . Electromagnetic 23 | . 10 9 4 Robot Hit Streak 7 | . 3 7 4 Robot Miss Streak 5 | . 5 4 1 Penetration Max . | . . . . Secondary Targets . | . . . . Shots Hit Robots 57 | . 16 29 12 Core Hits 27 | . 11 11 5 Critical Kills . | . . . . Critical Parts Destroyed . | . . . . Critical Strikes 1 | . . . 1 Burn 1 | . . . 1 Melee Attacks . | . . . . Impact . | . . . . Slashing . | . . . . Piercing . | . . . . Sneak Attacks . | . . . . Combat Hostiles . | . . . . Follow-up Attacks . | . . . . Damage Inflicted 1112 | . 276 476 360 Guns 300 | . 63 139 98 Cannons 652 | . 213 337 102 Explosions 149 | . . . 149 Melee . | . . . . Ramming 11 | . . . 11 Kinetic 770 | . 213 412 145 Thermal 165 | . . . 165 Explosive . | . . . . Electromagnetic 166 | . 63 64 39 Impact . | . . . . Slashing . | . . . . Piercing . | . . . . Highest Corruption . | . . . . Average Corruption . | . . . . Corruption Purged . | . . . . Corruption Blocked . | . . . . Overload Shots . | . . . . Overflow Damage 1 | . . 1 . Projectiles 1 | . . 1 . Explosions . | . . . . Melee . | . . . . Knockbacks 12 | . 2 5 5 Impact . | . . . . Kinetic 10 | . 1 5 4 Secondary 2 | . 1 . 1 Self-Inflicted Damage 41 | . . . 41 Shots 1 | . . . 1 Rammed 2 | . . . 2 Targets Rammed 6 | . . . 6 Kicked 4 | . . . 4 Crushed . | . . . . Highest Temperature 183 | . 72 183 11 Average Temperature 37 | . 20 59 5 Received Heat Transfer 1098 | . 6 192 900 Siege Activations . | . . . . Robots Corrupted . | . . . . Combat Hostiles . | . . . . Parts Fried . | . . . . Impact Corruptions . | . . . . Robots Melted . | . . . . Combat Hostiles . | . . . . Parts Melted . | . . . . Heat Transferred 311 | . . . 311 Parts Sabotaged . | . . . . Parts Stolen . | . . . . Parts Stripped . | . . . . Power Chain Reactions 1 | . . . 1 Alert | -11 -10 -9 -8 ------- Run | Yrd Mat Mat Mat Peak Influence 262 | . 262 255 132 Initial 110 | . . 110 107 Average 129 | . 112 201 93 Maximum Alert Level 1 | . 1 1 . Low Security (%) 75 | 100 80 48 100 Level 1 24 | . 19 51 . Level 2 . | . . . . Level 3 . | . . . . Level 4 . | . . . . Level 5 . | . . . . High Security . | . . . . Max Security . | . . . . Squads Dispatched 2 | . . 1 1 Investigation . | . . . . Extermination . | . . . . Reinforcement 2 | . . 1 1 Assault . | . . . . Garrison . | . . . . Intercept . | . . . . Searches Triggered . | . . . . Construction Impeded 1 | . . . 1 Haulers Reinforced . | . . . . Active Scanning Responses . | . . . . Cargo Convoy Interrupts . | . . . . Stealth | -11 -10 -9 -8 --------- Run | Yrd Mat Mat Mat Distress Signals 1 | . . . 1 Communications Jammed . | . . . . Distress Signals . | . . . . Times Spotted 38 | . 13 10 15 Peak Tracking Total 15 | . 4 4 15 Tactical Retreats 2 | . . . 2 Traps | -11 -10 -9 -8 ------- Run | Yrd Mat Mat Mat Traps Triggered . | . . . . Indirectly . | . . . . Trap Hack Attempts . | . . . . Triggered . | . . . . Disarmed . | . . . . Reprogrammed . | . . . . Reused . | . . . . Traps Extracted . | . . . . Installed . | . . . . Triggered . | . . . . Machines | -11 -10 -9 -8 ---------- Run | Yrd Mat Mat Mat Machines Disabled 2 | . 1 1 . Max in Single Turn 1 | . 1 1 . Machines Repaired . | . . . . Machines Dismantled . | . . . . Machines Sabotaged . | . . . . Overloaded Fab Kills . | . . . . Hacking | -11 -10 -9 -8 --------- Run | Yrd Mat Mat Mat Machines Accessed 3 | . 2 1 . Terminals 3 | . 2 1 . Fabricators . | . . . . Repair Stations . | . . . . Recycling Units . | . . . . Scanalyzers . | . . . . Garrison Access . | . . . . Total Hacks 5 | . 3 2 . Successful 2 | . 2 . . Failed 3 | . 1 2 . Catastrophic . | . . . . Database Lockouts . | . . . . Manual 5 | . 3 2 . Terminals 5 | . 3 2 . Fabricators . | . . . . Repair Stations . | . . . . Recycling Units . | . . . . Scanalyzers . | . . . . Garrison Access . | . . . . Terminal Hacks . | . . . . Fabricator Hacks . | . . . . Repair Station Hacks . | . . . . Recycling Unit Hacks . | . . . . Scanalyzer . | . . . . Garrison Access Hacks . | . . . . Unauthorized Hacks 2 | . 2 . . Terminals 2 | . 2 . . Botnet 2 | . 2 . . Fabricators . | . . . . Repair Stations . | . . . . Recycling Units . | . . . . Scanalyzers . | . . . . Garrison Access . | . . . . Data Cores Recovered . | . . . . Used . | . . . . Hacking Detections 1 | . . 1 . Full Trace Events . | . . . . Feedback Events . | . . . . Feedback Blocked . | . . . . Robot Schematics Acquired . | . . . . Robots Built . | . . . . Authchips . | . . . . Time . | . . . . Total Robot Build Rating . | . . . . Part Schematics Acquired . | . . . . Parts Built . | . . . . Authchips . | . . . . Time . | . . . . Total Part Build Rating . | . . . . Parts Repaired . | . . . . Time . | . . . . Parts Recycled . | . . . . Recycled Matter . | . . . . Retrieved Matter . | . . . . Retrieved Components . | . . . . Parts Scanalyzed . | . . . . Part Schematics Acquired . | . . . . Parts Damaged . | . . . . Bothacking | -11 -10 -9 -8 ------------ Run | Yrd Mat Mat Mat Used RIF Installer . | . . . . Robots Hacked . | . . . . Non-combat . | . . . . Combat . | . . . . Robot Hacks Applied . | . . . . Relay Couplers Released . | . . . . Fabnet Peak Effective % . | . . . . Robots Rewired . | . . . . Allies Hacked . | . . . . Hacks Repelled . | . . . . Allies | -11 -10 -9 -8 -------- Run | Yrd Mat Mat Mat Total Allies . | . . . . Largest Group . | . . . . Highest-Rated Group . | . . . . Highest-Rated Ally . | . . . . Total Orders . | . . . . Ally Attacks . | . . . . Total Damage . | . . . . Kills . | . . . . Allies Corrupted . | . . . . Allies Melted . | . . . . Intel | -11 -10 -9 -8 ------- Run | Yrd Mat Mat Mat Robot Analysis Total . | . . . . Derelict Logs Recovered . | . . . . Drone Launches . | . . . . Drone Recoveries . | . . . . Exploration | -11 -10 -9 -8 ------------- Run | Yrd Mat Mat Mat Turns Passed 751 | 49 304 239 159 Spaces Moved 472 | 38 260 98 76 Core 29 | 6 . . 23 Treads 108 | . . 77 31 Legs 22 | . . . 22 Wheels 313 | 32 260 21 . Hover . | . . . . Flight . | . . . . Fastest Speed 50 | 50 90 90 100 Average Speed 107 | 83 90 145 130 Slowest Speed 160 | 90 90 160 160 Overloaded Moves . | . . . . Propulsion Burnouts . | . . . . Robots Hopped . | . . . . Cave-ins Triggered . | . . . . Exploration Rate (%) 18 | 4 43 17 10 Regions Visited 3 Branch Regions . Pre-discovered Areas . | . . . . Known Exits Taken . | . . . . Unknown Exits Taken 3 | 1 1 1 . Scrap Searched . | . . . . Spaces Dug . | . . . . Terrain Destroyed 4 | . . . 4 Melee . | . . . . Projectile . | . . . . AOE 4 | . . . 4 Terrain Rammed . | . . . . Walls Destroyed . | . . . . Machines Disabled . | . . . . Actions | -11 -10 -9 -8 --------- Run | Yrd Mat Mat Mat Total 600 | 55 291 136 118 Wait 6 | . . . 6 Move 469 | 37 259 97 76 Hop . | . . . . Pick Up 28 | 12 6 2 8 Fast Attach . | . . . . Attach 21 | 6 1 6 8 Detach . | . . . . Swap 5 | . 3 . 2 Drop 3 | . 3 . . Fire 62 | . 19 31 12 Melee . | . . . . Ram 1 | . . . 1 Kick 4 | . . . 4 Crush 1 | . . . 1 Escape Stasis . | . . . . Rewire . | . . . . Trap . | . . . . Miscellaneous . | . . . . Route ------- -11/Scrapyard -10/Materials -9/Materials -8/Materials History --------- Turn | Location | Event 11 | -11/Scrapyard | Discovered new exit (range 14) 50 | -11/Scrapyard | Entered Materials 309 | -10/Materials | Discovered new exit (range 6) 317 | -10/Materials | Build established: Mutant 354 | -10/Materials | Entered another Materials area 354 | -9/Materials | Evolved 2 slots: Propulsion x1, Utility x1 512 | -9/Materials | Lost 3 parts (1p2w) 583 | -9/Materials | Discovered new exit (range 5) 593 | -9/Materials | Entered another Materials area 593 | -8/Materials | Evolved 2 slots: Propulsion x1, Utility x1 716 | -8/Materials | Core integrity fell below 50% 739 | -8/Materials | Core integrity fell below 20% 752 | -8/Materials | Destroyed by G-47 Trooper with Particle Gun Last Messages --------------- 00706_ G-50 Soldier destroyed. 00707_ Heat Sink destroyed. 00708_ Slammed into G-47 Trooper. 00708_ Lgt. Treads destroyed. 00709_ Acquired 4 matter. 00709_ Acquired 8 matter. 00712_ Acquired Aluminum Leg. 00713_ Acquired 2 matter. 00714_ Particle Gun destroyed. 00717_ K-01 Serf collects debris. 00718_ U-05 Engineer builds a Door. 00719_ U-05 Engineer builds a Wall. 00721_ K-01 Serf collects debris. 00725_ U-05 Engineer lays Concrete. 00725_ K-01 Serf collects debris. 00727_ Lgt. Treads destroyed. 00730_ K-01 Serf collects debris. 00734_ Slammed into G-47 Trooper. 00735_ Acquired Adv. Treads. 00742_ W-25 Informer sends out distress signal. Map ----- +----------------------------------------------------+ | ?????????????????????????#####???????????????????? | | ?????????????????????????# #?#????###########??? | | ?????????????????????????# #??????# #??? | | ?????????????????????????# #???#### #??? | | ?????????????????????????# ######## % #??? | | ?????????????????????????# # #??? | | ?????????????????????????# + #??? | | ?????????????????????????# !# #??? | | ?????????????????????????######## # #??? | | ?????????????????????????????#??# # #??# | | ????????????????????????????????# ###########??? | | ???????????????????############## ####??????#??? | | ???????????????? % #???????? ? | | ???????????????? ! #?????????? | | ???????????????? ##+#?????????? | | ????????????????? ###############/##?? ?????????? | | ?????????????????????????## #????????????? | | ??????????????????????????# #?????? ?????? | | ??????????????????????????# "" #????????????? | | ??????????????????????????# ""%#??????? ????? | | ??????????????????????????# """ #????"???????? | | ??????????????????????????# #????????????? | | ??????????????????????????# #??????? ????? | | ???????????????????######?# #?????#??????? | | ???????????????????# ##########/### | | ???????????????????# @ g | | ???????????????????# g | | ???????????????????# | | ???????????????????# w ? | | ???????????????????## """ g""" g""" ########? | | ????????????????????# """g """ """ #???????? | | ????????????????????# """ """ """ #???????? | | ????????????????????+ a #???????? | | ????????????????????# #???????? | | ????????????????????# ############## #???????? | | ?????????????????????? ?????????????? #???????? | | ????????????????????? ??????????????? #???????? | | ????????????????????? ???????????????? #???????? | | ??????????????????????????????????????? #???????? | | ?????????????????????????????????????????????????? | | ?????????????????????????????????????????????????? | | ?????????????????????????????????????????????????? | | ?????????????????????????????????????????????????? | | ?????????????????????????????????????????????????? | | ?????????????????????????????????????????????????? | | ?????????????????????????????????????????????????? | | ?????????????????????????????????????????????????? | | ?????????????????????????????????????????????????? | | ?????????????????????????????????????????????????? | | ?????????????????????????????????????????????????? | +----------------------------------------------------+ Best States ------------- Heat Dissipation 41 Energy Generation 10 Energy Capacity 450 Matter Stores 294 Matter Capacity 300 Sight Range 16 Terrain Scan Range 16 Terrain Scan Density 10 Armor Coverage 150 Evasion (%) 50 Recoil Reduction 2 Item Schematics ----------------- None Robot Schematics ------------------ None Fabricated ------------ Nothing Alien Tech Used ----------------- None Achievements -------------- None Challenges ------------ None Game ------ Seed DisruptionIonicThermoblaster Manual? 0 Play Time 00:12:49 Cumulative 182.6 hours Start 2024.12.10 @ 13:44:00 End 2024.12.10 @ 13:54:55 Sessions 1 Manual Loads 0 Difficulty Rogue Special Mode None Game No. 249 Rogue 249 Adventurer 0 Explorer 0 Win Type - Total 1 Types 1/0/0/0/0/0/0/0/0 Lore% 32 Gallery% 62 Achievement% 42 Wizard Run 0 Options --------- Layout 1 ASCII 0 Keyboard 0 Movement Mouse Keybinds 0 Fullscreen 1 Font 24/Smallcaps Map View 50x35 Zoom Use 0% Tactical HUD 1 Map Filters NONE Filters NONE Steam 1 RUN: 3706484c-3bae-46cb-ad25-8bfd3e76a6ba